Cogmind - Beta 10.2 @@@ ROGUE MODE // 2022.01.16 @ 23:03:01 Player: Ashbrazier Result: Self-destructed Performance ------------- Evolutions (1) 500 Regions Visited (3) 600 Robots Destroyed (6) 30 Value Destroyed (143) 143 Prototype IDs (2) 40 Alien Tech Used (0) 0 Bonus (0) 0 TOTAL SCORE: 1313 Bonus ------- None Cogmind --------- Core Integrity 271/400 Matter 300/300 Energy 43/100 System Corruption 0% Temperature Cool (0) Movement Core (50) Location -9/Mines Parts ------- > --- POWER (1) -------- (None) > --- PROPULSION (2) --- (None) > --- UTILITY (4) ------ Terrain Scanner Seismic Analyzer > --- WEAPON (2) ------- (None) > --- INVENTORY (4) ---- Light Ion Engine Cesium-ion Thruster Structural Scanner Peak State ------------ > --- POWER ------------ Ion Engine > --- PROPULSION ------- Cesium-ion Thruster Cesium-ion Thruster > --- UTILITY ---------- Terrain Scanner Advanced Terrain Scanner Advanced Terrain Scanner Seismic Analyzer > --- WEAPON ----------- (None) > --- INVENTORY -------- Ion Engine Light Ion Engine Wheel Structural Scanner [Rating: 15] Favorites ----------- Power Ion Engine Engine Ion Engine Propulsion Compact Wheel Wheel Compact Wheel Flight Unit Cesium-ion Thruster Utility Large Storage Unit Device Terrain Scanner Storage Large Storage Unit Processor Seismic Analyzer Weapon Medium Laser Energy Gun Medium Laser Ballistic Gun Light Assault Rifle Special Weapon Mining Laser Build | -11 -10 -9 -9 ------- Run | Scr Mat Mat Min Slots Evolved 2 | . . 2 . Power . | . . . . Propulsion . | . . . . Utility 2 | . . 2 . Weapon . | . . . . Parts Attached 33 | 5 17 10 1 Power 7 | 1 5 1 . Engine 7 | 1 5 1 . Core . | . . . . Reactor . | . . . . Propulsion 9 | 1 3 4 1 Treads . | . . . . Leg . | . . . . Wheel 4 | 1 3 . . Hover . | . . . . Flight 5 | . . 4 1 Utility 7 | 1 2 4 . Device 3 | . . 3 . Storage 3 | 1 2 . . Processor 1 | . . 1 . Hackware . | . . . . Protection . | . . . . Artifact . | . . . . Weapon 10 | 2 7 1 . Energy Gun 7 | 1 5 1 . Energy Cannon . | . . . . Ballistic Gun 2 | 1 1 . . Ballistic Cannon . | . . . . Launcher . | . . . . Special Weapon 1 | . 1 . . Impact Weapon . | . . . . Slashing Weapon . | . . . . Piercing Weapon . | . . . . Special Melee Weapon . | . . . . Unidentified Prototypes . | . . . . Parts Lost 11 | . 1 4 6 Power 1 | . . . 1 Propulsion 4 | . . 1 3 Utility 2 | . . . 2 Weapon 4 | . 1 3 . Highest Loss Streak 6 | . 1 4 6 Average Slot Usage (%) 94 | . 95 93 77 Engine 13 | . 14 11 11 Wheel 25 | . 28 17 . Flight 1 | . . 4 22 Device 3 | . . 12 33 Storage 25 | . 27 17 . Processor 2 | . . 11 11 Energy Gun 17 | . 18 18 . Special Weapon 3 | . 4 . . Naked Turns . | . . . . Heaviest Build 42 | 12 41 42 8 Greatest Support 26 | 16 26 26 12 Greatest Overweight (x) 2 | 2 1 1 1 Average Overweight (x) . | . . . . Largest Inventory Capacity 16 | 6 16 16 4 Average Capacity 14 | 5 15 13 4 Most Carried 16 | 6 16 15 4 Average Carried 13 | 4 14 12 3 Final Capacity 16 | 6 16 4 4 Final Carried 16 | 6 16 4 3 Class Distribution -------------------- 100% | Mutant Dominant Class ---------------- Mutant | -10/Materials Mutant | -9/Materials Mutant | -9/Mines Resources | -11 -10 -9 -9 ----------- Run | Scr Mat Mat Min Matter Collected 499 | 250 169 . 80 Remotely . | . . . . Salvage Created 181 | . 122 59 . Parts 10 | . 7 3 . Haulers Intercepted . | . . . . Recyclers Shooed . | . . . . Parts Field Recycled . | . . . . Retrieved Matter . | . . . . Parts Self-Destructed . | . . . . Prevented . | . . . . Kills | -11 -10 -9 -9 ------- Run | Scr Mat Mat Min Combat Hostiles Destroyed 6 | . 5 1 . Guns 6 | . 5 1 . Classes Destroyed 3 | . 2 1 . Swarmer 3 | . 3 . . Grunt 2 | . 2 . . Sentry 1 | . . 1 . Best Kill Streak 3 | . 3 1 . Combat Bots Only 3 | . 3 1 . Max Kills in Single Turn 1 | . 1 1 . Gunslinging . | . . . . Exploded . | . . . . Melee . | . . . . Uniques/NPCs Destroyed . | . . . . Combat | -11 -10 -9 -9 -------- Run | Scr Mat Mat Min Damage Taken 814 | . 211 364 239 Core 153 | . 24 66 63 Absorbed by Shields . | . . . . Core Remaining (%) 95 | 100 90 . . Volleys Fired 26 | . 18 8 . Largest 2 | . 2 2 . Hottest 100 | . 100 100 . Shots Fired 37 | . 22 15 . Gun 36 | . 21 15 . Cannon . | . . . . Launcher . | . . . . Special 1 | . 1 . . Kinetic 4 | . 4 . . Thermal 33 | . 18 15 . Explosive . | . . . . Electromagnetic . | . . . . Robot Hit Streak 10 | . 6 10 . Robot Miss Streak 2 | . 1 2 . Penetration Max . | . . . . Secondary Targets . | . . . . Shots Hit Robots 25 | . 17 8 . Core Hits 10 | . 7 3 . Critical Hits . | . . . . Critical Kills . | . . . . Critical Parts Destroyed . | . . . . Melee Attacks . | . . . . Impact . | . . . . Slashing . | . . . . Piercing . | . . . . Sneak Attacks . | . . . . Combat Hostiles . | . . . . Follow-up Attacks . | . . . . Damage Inflicted 277 | . 178 99 . Guns 277 | . 178 99 . Cannons . | . . . . Explosions . | . . . . Melee . | . . . . Ramming . | . . . . Kinetic 28 | . 28 . . Thermal 249 | . 150 99 . Explosive . | . . . . Electromagnetic . | . . . . Impact . | . . . . Slashing . | . . . . Piercing . | . . . . Highest Corruption . | . . . . Average Corruption . | . . . . Corruption Purged . | . . . . Overload Shots . | . . . . Overflow Damage . | . . . . Projectiles . | . . . . Explosions . | . . . . Melee . | . . . . Knockbacks . | . . . . Impact . | . . . . Kinetic . | . . . . Secondary . | . . . . Self-Inflicted Damage . | . . . . Shots . | . . . . Rammed . | . . . . Targets Rammed . | . . . . Kicked . | . . . . Crushed . | . . . . Highest Temperature 212 | . 212 136 . Average Temperature 72 | . 76 66 . Received Heat Transfer 156 | . 72 84 . Siege Activations . | . . . . Robots Corrupted . | . . . . Combat Hostiles . | . . . . Parts Fried . | . . . . Impact Corruptions . | . . . . Robots Melted . | . . . . Combat Hostiles . | . . . . Parts Melted 2 | . 2 . . Heat Transferred 740 | . 444 296 . Parts Sabotaged . | . . . . Parts Stolen . | . . . . Parts Stripped . | . . . . Power Chain Reactions . | . . . . Missiles Intercepted . | . . . . Alert | -11 -10 -9 -9 ------- Run | Scr Mat Mat Min Peak Influence 100 | . 100 89 54 Initial 34 | . . . 34 Average 48 | . 54 35 34 Maximum Alert Level . | . . . . Low Security (%) 100 | 100 100 100 100 Level 1 . | . . . . Level 2 . | . . . . Level 3 . | . . . . Level 4 . | . . . . Level 5 . | . . . . High Security . | . . . . Max Security . | . . . . Squads Dispatched 5 | . 3 2 . Investigation 2 | . 2 . . Extermination . | . . . . Reinforcement 3 | . 1 2 . Assault . | . . . . Garrison . | . . . . Intercept . | . . . . Construction Impeded . | . . . . Haulers Reinforced . | . . . . Stealth | -11 -10 -9 -9 --------- Run | Scr Mat Mat Min Distress Signals 2 | . 1 1 . Communications Jammed . | . . . . Distress Signals . | . . . . Times Spotted 47 | . 11 16 20 Peak Tracking Total 19 | . 3 10 19 Tactical Retreats 7 | . 1 4 2 Traps | -11 -10 -9 -9 ------- Run | Scr Mat Mat Min Traps Triggered 1 | . 1 . . Indirectly . | . . . . Trap Hack Attempts . | . . . . Triggered . | . . . . Disarmed . | . . . . Reprogrammed . | . . . . Reused . | . . . . Traps Extracted . | . . . . Installed . | . . . . Triggered . | . . . . Machines | -11 -10 -9 -9 ---------- Run | Scr Mat Mat Min Machines Disabled . | . . . . Max in Single Turn . | . . . . Machines Sabotaged . | . . . . Garrisons Compromised . | . . . . Overloaded Fab Kills . | . . . . Fab Network Shutdowns . | . . . . Hacking | -11 -10 -9 -9 --------- Run | Scr Mat Mat Min Machines Accessed 9 | . 7 2 . Terminals 8 | . 6 2 . Fabricators . | . . . . Repair Stations . | . . . . Recycling Units 1 | . 1 . . Scanalyzers . | . . . . Garrison Access . | . . . . Total Hacks 33 | . 24 9 . Successful 18 | . 13 5 . Failed 15 | . 11 4 . Catastrophic 3 | . 2 1 . Database Lockouts . | . . . . Manual 27 | . 22 5 . Terminals 32 | . 23 9 . Fabricators . | . . . . Repair Stations . | . . . . Recycling Units 1 | . 1 . . Scanalyzers . | . . . . Garrison Access . | . . . . Terminal Hacks 5 | . 3 2 . Record 1 | . 1 . . Prototype ID Bank 1 | . . 1 . Alert Level 1 | . 1 . . Locate Traps 2 | . 1 1 . Fabricator Hacks . | . . . . Repair Station Hacks . | . . . . Recycling Unit Hacks . | . . . . Scanalyzer . | . . . . Garrison Access Hacks . | . . . . Unauthorized Hacks 13 | . 10 3 . Terminals 13 | . 10 3 . Track 2 | . 2 . . Assimilate 4 | . 3 1 . Botnet 7 | . 5 2 . Fabricators . | . . . . Repair Stations . | . . . . Recycling Units . | . . . . Scanalyzers . | . . . . Garrison Access . | . . . . Data Cores Recovered . | . . . . Used . | . . . . Hacking Detections 9 | . 7 2 . Full Trace Events 1 | . 1 . . Feedback Events . | . . . . Feedback Blocked . | . . . . Robot Schematics Acquired . | . . . . Robots Built . | . . . . Matter . | . . . . Time . | . . . . Total Robot Build Rating . | . . . . Part Schematics Acquired . | . . . . Parts Built . | . . . . Matter . | . . . . Time . | . . . . Total Part Build Rating . | . . . . Parts Repaired . | . . . . Time . | . . . . Parts Recycled . | . . . . Recycled Matter . | . . . . Retrieved Matter . | . . . . Retrieved Components . | . . . . Parts Scanalyzed . | . . . . Part Schematics Acquired . | . . . . Parts Damaged . | . . . . Bothacking | -11 -10 -9 -9 ------------ Run | Scr Mat Mat Min Used RIF Installer . | . . . . Robots Hacked . | . . . . Non-combat . | . . . . Combat . | . . . . Robot Hacks Applied . | . . . . Relay Couplers Released . | . . . . Robots Rewired . | . . . . Allies Hacked . | . . . . Hacks Repelled . | . . . . Allies | -11 -10 -9 -9 -------- Run | Scr Mat Mat Min Total Allies . | . . . . Largest Group . | . . . . Highest-Rated Group . | . . . . Highest-Rated Ally . | . . . . Total Orders . | . . . . Ally Attacks . | . . . . Total Damage . | . . . . Kills . | . . . . Allies Corrupted . | . . . . Allies Melted . | . . . . Intel | -11 -10 -9 -9 ------- Run | Scr Mat Mat Min Robot Analysis Total . | . . . . Derelict Logs Recovered . | . . . . Drone Launches . | . . . . Drone Recoveries . | . . . . Exploration | -11 -10 -9 -9 ------------- Run | Scr Mat Mat Min Turns Passed 1246 | 70 952 177 47 Spaces Moved 1131 | 66 790 156 119 Core 31 | 31 . . . Treads . | . . . . Legs . | . . . . Wheels 921 | 35 790 96 . Hover . | . . . . Flight 179 | . . 60 119 Fastest Speed 37 | 50 90 37 37 Average Speed 89 | 85 99 75 38 Slowest Speed 150 | 150 100 100 120 Overloaded Moves . | . . . . Propulsion Burnouts . | . . . . Robots Hopped . | . . . . Cave-ins Triggered . | . . . . Exploration Rate (%) 35 | 4 97 17 24 Regions Visited 3 Branch Regions 1 Pre-discovered Areas . | . . . . Known Exits Taken . | . . . . Unknown Exits Taken 3 | 1 1 1 . Scrap Searched 1 | . . . 1 Spaces Dug 1 | . 1 . . Terrain Destroyed 1 | . 1 . . Melee . | . . . . Projectile 1 | . 1 . . AOE . | . . . . Terrain Rammed . | . . . . Walls Destroyed . | . . . . Machines Disabled . | . . . . Actions | -11 -10 -9 -9 --------- Run | Scr Mat Mat Min Total 1328 | 78 930 200 120 Wait 91 | . 73 18 . Move 1128 | 65 789 155 119 Hop . | . . . . Pick Up 29 | 7 19 3 . Fast Attach 13 | 3 8 2 . Attach 11 | 2 4 4 1 Detach 1 | 1 . . . Swap 9 | . 5 4 . Drop 20 | . 14 6 . Fire 26 | . 18 8 . Melee . | . . . . Ram . | . . . . Kick . | . . . . Crush . | . . . . Escape Stasis . | . . . . Rewire . | . . . . Trap . | . . . . Miscellaneous . | . . . . Route ------- -11/Scrapyard -10/Materials (discovered 5 exits: *Mat x3 / [*Min x2]) -9/Materials -9/Mines (discovered 1 exit: [Mat]) History --------- Turn | Location | Event 16 | -11/Scrapyard | Discovered new exit (range 16) 71 | -11/Scrapyard | Entered Materials 303 | -10/Materials | Discovered new exit (range 13) 318 | -10/Materials | Build established: Mutant 475 | -10/Materials | Discovered new exit (range 16) 869 | -10/Materials | Discovered new exit (range 6) 965 | -10/Materials | Discovered new exit (range 16) 1010 | -10/Materials | Discovered new exit (range 14) 1023 | -10/Materials | Entered another Materials area 1023 | -9/Materials | Evolved 2 slots: Utility x2 1180 | -9/Materials | Discovered new exit (range 16) 1200 | -9/Materials | Entered Mines 1201 | -9/Mines | Assembled infested the area 1204 | -9/Mines | Met a Derelict bent on vengeance 1214 | -9/Mines | Lost 4 parts (1n3w) 1220 | -9/Mines | Discovered new exit (range 13) 1247 | -9/Mines | Self-destructed Last Messages --------------- 01228_ C-30 ARC bursts open, deploying its payload. 01228_ S-10 Pest unfolds itself. 01233_ Cesium-ion Thruster destroyed. 01242_ U-05 Engineer lays Concrete. 01243_ A derelict emerges from the shadows. 01243_ U-05 Engineer lays Concrete. 01244_ PX-JQC(g): "Some of my friends down here think you need a mining laser when you travel the depths." 01244_ U-05 Engineer destroyed. 01244_ U-05 Engineer lays Concrete. 01245_ PX-JQC(g): "Pshh... whatever." 01245_ PX-JQC(g) destroyed. 01245_ Cesium-ion Thruster destroyed. 01245_ D-53 Grenadier destroyed. 01245_ U-05 Engineer lays Concrete. 01246_ Acquired 80 matter. 01246_ U-05 Engineer lays Concrete. 01247_ Cesium-ion Thruster destroyed. 01247_ Adv. Terrain Scanner destroyed. 01247_ Ion Engine destroyed. Map ----- +----------------------------------------------------+ | ????#?????#?### #????#????????? | | ????????????## #####????#??????#?? | | ???????#???## ##?????##????##??#?? | | ??????????## ##??????????????????? | | #?#???????## ##????#?#???????????# | | ?????????## #?#?????#?#?????????? | | ?????????# ##?????????#????????? | | ????#????# ###??#?????????????? | | ???????### ##??????#????????# | | ?????????## ##??????????????# | | ????????#?##### ##?????????????? | | #?????#???#??### ###??#??#??#??# | | ??#????? ????#?## ##???#??????#? | | #???#?????? ????# ##??#?#?????? | | ?????#?????? ???## #???#???????? | | ????#????"???? ??## #???#??????#? | | ??????? ?"????????# #??#??#?##??? | | ???